bitfinex-derivatives/quotes_BNBF0:USTF0_20250115
["timestamp","ask_amount","ask_price","bid_price","bid_amount"]
[1736950401610,0.26310156,699.32,696.97,0.28695639]
[1736950401903,1.07027693,699.2,696.97,0.28695639]
[1736950402102,0.26310156,699.19,696.97,0.28695639]
[1736950402309,1.75860002,699.19,696.97,0.28695639]
[1736950402505,0.26310156,699.18,696.97,0.28695639]
[1736950404005,0.26318003,699.17,696.97,0.28695639]
[1736950404213,0.26318003,699.18,696.97,0.28695639]
[1736950404407,0.26318003,699.16,696.97,0.28695639]
[1736950404612,1.49549846,699.19,696.97,0.28695639]
[1736950404613,1.06601498,699.06,696.97,0.28695639]
[1736950405113,0.26318003,699.05,696.97,0.28695639]
[1736950405916,0.26318003,699.16,696.97,0.28695639]
[1736950406114,0.26318003,699.15,696.97,0.28695639]
[1736950406309,0.26318003,699.14,696.97,0.28695639]
[1736950406513,0.26318003,699.13,696.97,0.28695639]
[1736950406714,0.26318003,699.12,696.97,0.28695639]
[1736950406917,0.26318003,699.11,696.97,0.28695639]
[1736950407217,0.26318003,699.1,696.97,0.28695639]
[1736950407418,0.26318003,699.18,696.97,0.28695639]
[1736950407614,0.26318003,699.17,696.97,0.28695639]
[1736950407811,0.26318003,699.16,696.97,0.28695639]
[1736950408015,0.26318003,699.15,696.97,0.28695639]
[1736950408216,0.26318003,699.14,696.97,0.28695639]
[1736950408513,0.26318003,699.13,696.97,0.28695639]
[1736950408716,0.26318003,699.26,696.97,0.28695639]
[1736950408918,1.06601498,699.12,696.97,0.28695639]
[1736950409818,1.27921798,699.64,696.97,0.28695639]
[1736950409819,1.06601498,699.41,696.97,0.28695639]
[1736950410117,0.26304261,699.4,696.97,0.28695639]
[1736950410712,0.26303776,699.39,696.97,0.28695639]
[1736950411218,0.26303776,699.4,696.97,0.28695639]
[1736950411520,1.06601498,699.49,696.97,0.28695639]
[1736950411719,0.26303568,699.39,696.97,0.28695639]
[1736950411914,1.06601498,699.46,696.97,0.28695639]
[1736950412113,0.26303568,699.45,696.97,0.28695639]
[1736950412919,1.06601498,699.39,697.01,1.05105197]
[1736950413215,0.26303568,699.38,697.01,1.05105197]
[1736950414116,0.26303568,699.37,697.01,1.05105197]
[1736950414420,0.26303568,699.36,697.01,1.05105197]
[1736950414723,0.26303568,699.35,697.01,1.05105197]
[1736950414918,0.26303568,699.34,697.01,1.05105197]
[1736950415117,0.26303568,699.33,697.01,1.05105197]
[1736950415320,0.26303568,699.32,697.02,1.05105197]
[1736950415518,1.06601498,699.38,697.02,1.05105197]
[1736950415519,0.26303568,699.31,697.02,1.05105197]
[1736950415720,0.26303568,699.3,697.02,1.05105197]
[1736950415921,0.26303568,699.29,697.02,1.05105197]
[1736950416123,1.06601498,699.13,696.97,0.28695639]
[1736950416315,0.26303568,699.12,696.97,0.28695639]
[1736950416615,0.26313929,699.11,696.97,0.28695639]
[1736950416820,0.26313929,699.12,696.97,0.28695639]
[1736950417015,0.26313929,699.11,696.97,0.28695639]
[1736950417320,0.26313929,699.1,696.97,0.28695639]
[1736950417519,1.06601498,699.19,696.97,0.28695639]
[1736950417520,0.26313929,699.09,696.97,0.28695639]
[1736950417822,0.26313929,699.08,696.97,0.28695639]
[1736950418016,0.26313929,699.07,696.97,0.28695639]
[1736950418319,1.06601498,698.89,696.97,0.28695639]
[1736950418520,0.26313929,698.88,696.97,0.28695639]
[1736950419320,0.26313929,698.91,696.97,0.28695639]
[1736950419614,1.06601498,698.92,696.97,0.28695639]
[1736950419820,0.26314949,698.91,696.97,0.28695639]
[1736950420016,1.06601498,698.92,696.97,0.28695639]
[1736950420224,8.52150187,707.38,696.97,0.28695639]
[1736950420225,0.26314794,698.91,696.97,0.28695639]
[1736950420522,1.06601498,699.05,696.97,0.28695639]
[1736950420715,0.26314451,699.04,696.97,0.28695639]
[1736950420921,1.06601498,699.05,696.97,0.28695639]
[1736950421120,1.06601498,699.1,696.97,0.28695639]
[1736950422022,0.28587764,699.6,696.97,0.28695639]
[1736950422023,1.06601498,699.35,696.97,0.28695639]
[1736950422219,0.26305381,699.34,696.97,0.28695639]
[1736950422420,0.26305284,699.33,696.97,0.28695639]
[1736950422721,0.26305284,699.32,696.97,0.28695639]
[1736950422923,0.26305284,699.31,696.97,0.28695639]
[1736950423119,0.26305284,699.3,696.97,0.28695639]
[1736950423323,0.26305284,699.29,696.97,0.28695639]
[1736950423522,0.26305284,699.28,696.97,0.28695639]
[1736950423718,0.26305284,699.27,696.97,0.28695639]
[1736950423925,0.26305284,699.26,696.97,0.28695639]
[1736950424224,0.26305284,699.25,696.97,0.28695639]
[1736950424417,0.26305284,699.24,696.97,0.28695639]
[1736950424620,1.06601498,699.37,696.97,0.28695639]
[1736950424823,0.26305598,699.36,696.97,0.28695639]
[1736950425024,1.06601498,699.39,696.97,0.28695639]
[1736950425025,0.26305598,699.35,696.97,0.28695639]
[1736950425223,1.06601498,699.39,696.97,0.28695639]
[1736950425424,0.26305264,699.38,696.97,0.28695639]
[1736950425823,0.26305264,699.37,696.97,0.28695639]
[1736950426022,0.26305264,699.36,696.97,0.28695639]
[1736950426224,0.54903247,699.35,696.98,2.48309883]
[1736950426423,0.26305264,699.34,696.99,2.48309883]
[1736950426620,0.26305264,699.34,697.0,2.48309883]
[1736950426823,0.26305264,699.34,696.98,2.72780472]
[1736950426824,1.06601498,699.22,697.16,1.05105197]
[1736950427029,1.06601498,699.22,697.17,1.62479077]
[1736950427030,0.26305264,699.21,697.17,1.62479077]
[1736950427422,0.26305264,699.21,697.18,0.85894665]
[1736950427725,0.26305264,699.21,697.2,0.28686173]
[1736950428027,1.06601498,699.2,697.2,1.3379137]
[1736950428235,0.26305264,699.19,697.2,1.3379137]
[1736950428823,1.06601498,699.2,697.2,1.3379137]
[1736950429022,0.28597983,699.35,697.2,0.28686173]
[1736950429023,1.06601498,699.16,697.2,0.28686173]
[1736950429227,0.26310125,699.15,697.2,0.28686173]
[1736950429429,0.26310125,699.14,697.21,1.62704147]
[1736950429728,0.26310125,699.13,697.21,1.62704147]
[1736950430033,1.06601498,699.04,697.21,1.62704147]
[1736950430329,0.26310125,699.03,697.2,0.28686173]
[1736950430929,1.32911623,699.03,697.2,0.28686173]
[1736950431128,0.26310125,699.02,697.2,0.28686173]
[1736950431925,0.26310125,699.04,697.2,0.28686173]
[1736950432129,0.26310125,699.01,697.2,0.28686173]
[1736950432331,0.26310125,699.0,697.2,0.28686173]
[1736950432727,0.26310125,699.04,697.2,0.28686173]
[1736950432925,1.06601498,699.06,697.21,1.62565813]
[1736950433231,1.06601498,699.06,697.22,1.6252813]
[1736950433527,1.06601498,699.06,697.23,4.35553408]
[1736950433832,1.06601498,699.27,697.28,1.05105197]
[1736950434532,0.28597983,699.35,697.23,2.73025278]
[1736950435437,0.28597983,699.35,697.2,0.28686173]
[1736950436634,0.2629929,699.34,697.21,2.48510876]
[1736950436935,0.2629929,699.34,697.22,5.21685408]
[1736950437132,0.2629929,699.34,697.23,2.48510876]
[1736950437327,0.2629929,699.34,697.24,2.48510876]
[1736950437634,0.28597983,699.35,697.37,1.05105197]
[1736950437933,0.26299606,699.34,697.37,1.05105197]
[1736950438634,0.26299606,699.34,697.33,1.05105197]
[1736950439434,0.26299606,699.34,697.2,0.28686173]
[1736950439435,0.26299606,699.34,697.27,1.05105197]
[1736950439631,0.26299606,699.34,697.28,4.35880498]
[1736950439832,0.26298822,699.33,697.28,2.7321568]
[1736950440033,0.26298822,699.34,697.29,1.62666478]
[1736950440334,0.26298822,699.33,697.29,1.62666478]
[1736950440537,0.26298822,699.32,697.31,1.05105197]
[1736950440731,0.26298822,699.31,697.32,1.62666478]
[1736950440933,0.26298822,699.3,697.34,0.28680414]
[1736950441133,0.26299952,699.29,697.34,0.28680414]
[1736950441431,0.26299952,699.28,697.34,0.28680414]
[1736950441635,0.26299952,699.34,697.34,1.33785611]
[1736950441835,0.26299984,699.27,697.35,1.62679791]
[1736950442035,0.26299984,699.33,697.36,0.85873065]
[1736950442241,0.26299984,699.32,697.37,1.62679791]
[1736950442531,0.26299984,699.31,697.38,0.85873065]
[1736950442735,0.26299984,699.3,697.43,1.05105197]
[1736950442937,0.26299984,699.29,697.44,2.48552856]
[1736950443241,0.26299984,699.28,697.45,1.62679791]
[1736950443430,0.26299984,699.27,697.46,1.62679791]
[1736950443632,0.26299984,699.26,697.47,2.48550849]
[1736950443835,0.26299984,699.25,697.48,1.05105197]
[1736950444038,0.28597983,699.35,697.48,1.05105197]
[1736950444235,0.26297884,699.34,697.48,1.05105197]
[1736950444732,0.2629791,699.33,697.48,1.05105197]
[1736950444940,0.2629791,699.32,697.44,1.05105197]
[1736950445132,0.2629791,699.31,697.44,1.05105197]
[1736950445432,0.2629791,699.34,697.45,5.21877843]
[1736950445637,0.2629791,699.33,697.46,2.48612826]
[1736950445939,0.2629791,699.32,697.47,2.48612826]
[1736950446138,0.2629791,699.32,697.45,2.73265017]
[1736950446338,0.2629791,699.32,697.5,1.04861043]
[1736950446339,1.06622868,699.32,697.5,1.04861043]
[1736950446536,0.2629791,699.31,697.5,1.04861043]
[1736950447136,1.06622868,699.26,697.34,0.28680414]
[1736950447439,0.2629791,699.25,697.34,0.28680414]
[1736950447738,0.2630654,699.24,697.34,0.28680414]
[1736950447939,0.2630654,699.23,697.34,0.28680414]
[1736950448140,0.2630654,699.22,697.34,0.28680414]
[1736950448334,0.2630654,699.21,697.34,0.28680414]
[1736950448533,0.2630654,699.2,697.34,0.28680414]
[1736950448739,0.2630654,699.19,697.34,0.28680414]
[1736950448936,0.2630654,699.18,697.34,0.28680414]
[1736950449139,1.06622868,699.23,697.34,0.28680414]
[1736950449340,0.26309123,699.22,697.34,0.28680414]
[1736950450341,1.06622868,699.34,697.34,0.28680414]
[1736950450749,0.26309675,699.21,697.34,0.28680414]
[1736950451346,0.26309675,699.33,697.34,0.28680414]
[1736950451648,1.32932543,699.33,697.34,0.28680414]
[1736950451848,0.26309675,699.32,697.34,0.28680414]
[1736950453247,0.28600028,699.3,697.34,0.28680414]
[1736950454149,1.06622868,699.22,697.34,0.28680414]
[1736950455049,0.26307187,699.21,697.34,0.28680414]
[1736950455249,1.06622868,699.14,697.34,0.28680414]
[1736950455450,0.26307187,699.13,697.34,0.28680414]
[1736950455851,1.06622868,699.02,697.34,0.28680414]
[1736950456043,0.26307187,699.01,697.34,0.28680414]
[1736950456450,0.26310339,699.0,697.34,0.28680414]
[1736950456650,0.26310339,698.99,697.34,0.28680414]
[1736950456851,0.26310339,698.98,697.34,0.28680414]
[1736950457146,1.06622868,699.07,697.34,0.28680414]
[1736950457643,0.26310785,699.06,697.34,0.28680414]
[1736950458046,0.26310785,699.05,697.34,0.28680414]
[1736950458245,0.26310785,699.16,697.34,0.28680414]
[1736950458445,0.26310785,699.15,697.34,0.28680414]
[1736950458644,1.06622868,699.17,697.34,0.28680414]
[1736950458645,0.26310785,699.16,697.34,0.28680414]
[1736950458845,1.06622868,699.1,697.34,0.28680414]
[1736950459049,0.26310785,699.09,697.34,0.28680414]
[1736950459252,0.2631351,699.08,697.34,0.28680414]
[1736950459548,1.06622868,698.98,697.34,0.28680414]
[1736950459753,0.2631351,698.97,697.34,0.28680414]
[1736950460548,1.06622868,698.94,697.34,0.28680414]
[1736950460851,0.2631351,698.93,697.34,0.28680414]
[1736950461646,0.2631351,698.94,697.34,0.28680414]
[1736950461953,0.26316892,698.93,697.34,0.28680414]
[1736950462150,0.26316892,698.92,697.34,0.28680414]
[1736950462350,0.26316892,698.94,697.34,0.28680414]
[1736950462652,0.26316892,698.93,697.34,0.28680414]
[1736950462853,0.26315738,698.94,697.34,0.28680414]
[1736950463355,0.26315738,698.93,697.34,0.28680414]
[1736950463951,0.26315738,698.92,697.34,0.28680414]
[1736950464153,0.28616397,698.9,697.34,0.28680414]
[1736950464548,0.26315738,698.89,697.34,0.28680414]
[1736950464954,0.26315567,698.88,697.34,0.28680414]
[1736950465349,0.26315567,698.89,697.34,0.28680414]
[1736950465856,0.26315567,698.88,697.34,0.28680414]
[1736950466155,0.26315567,698.87,697.34,0.28680414]
[1736950466356,0.26315567,698.86,697.34,0.28680414]
[1736950466556,0.28616397,698.9,697.34,0.28680414]
[1736950466557,0.26315567,698.85,697.34,0.28680414]
[1736950466857,0.28616397,698.9,697.34,0.28680414]
[1736950467057,0.26316821,698.89,697.34,0.28680414]
[1736950469762,0.28616397,698.9,697.34,0.28680414]
[1736950470062,0.26318678,698.89,697.34,0.28680414]
[1736950473362,0.28616397,698.9,697.34,0.28680414]
[1736950473865,0.26317809,698.89,697.34,0.28680414]
[1736950475065,0.28616397,698.9,697.34,0.28680414]
[1736950476567,0.26317833,698.89,697.34,0.28680414]
[1736950476770,0.28617625,698.87,697.34,0.28680414]
[1736950478971,0.26320275,698.86,697.34,0.28680414]
[1736950479375,1.06622868,698.82,697.34,0.28680414]
[1736950479571,0.26322734,698.81,697.34,0.28680414]
[1736950480571,1.06622868,698.73,697.34,0.28680414]
[1736950480874,0.26322734,698.72,697.34,0.28680414]
[1736950481468,0.26322734,698.72,696.77,1.04861043]
[1736950481667,0.26326243,698.71,696.62,1.04861043]
[1736950481871,0.26326243,698.71,696.78,0.28703464]
[1736950482569,1.06622868,698.67,696.78,0.28703464]
[1736950482770,0.26326243,698.66,696.78,0.28703464]
[1736950483374,1.06622868,698.55,696.79,1.04861043]
[1736950483572,0.26326243,698.54,696.79,1.04861043]
[1736950484471,0.26326925,698.53,696.78,0.28703464]
[1736950484667,1.06622868,698.65,696.78,0.28703464]
[1736950484668,0.26326925,698.52,696.78,0.28703464]
[1736950484871,0.26326925,698.51,696.78,0.28703464]
[1736950485074,1.06622868,698.65,696.78,0.28703464]
[1736950485274,0.26325902,698.64,696.78,0.28703464]
[1736950485673,0.26325902,698.66,696.78,0.28703464]
[1736950485874,0.26325902,698.65,696.78,0.28703464]
[1736950486074,0.26325902,698.66,696.78,0.28703464]
[1736950486269,1.06622868,698.67,696.78,0.28703464]
[1736950486472,0.26323637,698.66,696.78,0.28703464]
[1736950486966,1.06622868,698.78,696.78,0.28703464]
[1736950487172,0.26323185,698.77,696.78,0.28703464]
[1736950487369,1.06622868,698.78,696.78,0.28703464]
[1736950487973,1.06622868,698.85,696.78,0.28703464]
[1736950488773,0.28617625,698.87,696.82,1.04861043]
[1736950489877,0.28617625,698.87,696.83,1.62436248]
[1736950490074,0.28617625,698.87,696.97,1.04861043]
[1736950491075,0.28617625,698.87,696.78,0.28703464]
[1736950491076,0.28617625,698.87,697.11,1.04861043]
[1736950492079,0.28617625,698.87,697.05,1.04861043]
[1736950493777,0.28617625,698.87,697.06,1.62143618]
[1736950494377,0.28617625,698.87,697.07,0.85872528]
[1736950494578,0.28617625,698.87,697.17,1.04861043]
[1736950495479,0.28617625,698.87,697.2,1.04861043]
[1736950496279,0.28617625,698.87,696.35,2.14091297]
[1736950496280,0.28617625,698.87,696.89,1.04861043]
[1736950496475,0.28617625,698.87,696.9,2.47864999]
[1736950496782,0.28617625,698.87,696.89,1.04861043]
[1736950496783,1.06622868,699.74,696.91,5.20017165]
[1736950497081,0.28582861,699.72,697.11,1.04861043]
[1736950497274,0.26293118,699.71,697.11,1.04861043]
[1736950497879,0.26293118,699.71,697.03,1.04861043]
[1736950498081,0.26293118,699.71,697.04,5.20028347]
[1736950498279,0.26293118,699.71,697.05,1.62015068]
[1736950498881,0.26293118,699.71,697.06,0.85859919]
[1736950499081,0.26293118,699.7,697.07,1.62015068]
[1736950499283,0.26293118,699.69,697.07,1.62015068]
[1736950499581,0.26293118,699.68,697.22,1.04861043]
[1736950499782,1.06622868,699.7,697.23,5.20027153]
[1736950499983,0.26295148,699.67,697.24,2.47874987]
[1736950500279,0.26295148,699.69,697.25,2.47874987]
[1736950500482,0.26295148,699.66,697.26,2.47874987]
[1736950500784,0.26295148,699.68,697.27,2.47874987]
[1736950501082,0.26295148,699.65,697.23,2.72152166]
[1736950501282,0.26295148,699.67,697.23,2.72152166]
[1736950501484,0.26295148,699.67,697.09,1.04861043]
[1736950501684,0.26295148,699.64,697.09,1.04861043]
[1736950501983,1.06622868,699.7,697.09,1.04861043]
[1736950502178,0.26294081,699.63,697.05,1.04861043]
[1736950502583,0.26294081,699.69,697.1,2.72759008]
[1736950502986,0.28582861,699.72,697.1,2.72759008]
[1736950503681,0.28582861,699.72,697.11,2.48389472]
[1736950503881,0.26288907,699.71,697.12,5.2114848]
[1736950504082,0.26288907,699.71,697.13,2.48389472]
[1736950504386,0.26288907,699.7,697.14,2.48389472]
[1736950504588,0.26288907,699.7,697.15,2.48389472]
[1736950504787,0.28582861,699.72,697.12,2.72759008]
[1736950504788,0.26288907,699.69,697.16,2.48389472]
[1736950504985,0.26288907,699.69,697.17,2.48389472]
[1736950505187,0.26292445,699.68,697.18,2.48389472]
[1736950505486,0.26292445,699.68,697.19,5.2114848]
[1736950505786,0.26292445,699.67,697.2,2.48389472]
[1736950505987,0.26292445,699.67,697.21,2.48389472]
[1736950506188,0.26292445,699.67,697.22,2.48389472]
[1736950506488,0.26292445,699.66,697.23,2.48389472]
[1736950506682,0.26292445,699.66,697.24,5.2114848]
[1736950506885,0.26292445,699.66,697.25,2.48389472]
[1736950507086,0.26292445,699.65,697.26,2.48389472]
[1736950507284,0.26292445,699.65,697.27,0.85845137]
[1736950507485,0.26292445,699.65,697.28,1.62544335]
[1736950507690,0.26292445,699.64,697.29,0.85845137]
[1736950507888,0.26292445,699.64,697.3,4.35303343]
[1736950508085,0.26292445,699.63,697.31,2.48389472]
[1736950508285,0.26292445,699.63,697.3,2.72759008]
[1736950508286,0.26292445,699.63,697.32,2.48389472]
[1736950508485,0.28582861,699.72,697.33,2.48389472]
[1736950508689,0.26289661,699.62,697.34,2.48389472]
[1736950508983,0.28582861,699.72,697.35,2.48389472]
[1736950508984,0.26289661,699.71,697.35,2.48389472]
[1736950509187,0.26289661,699.61,697.36,2.48389472]
[1736950509387,0.26289661,699.6,697.37,2.48389472]
[1736950509587,0.26288995,699.59,697.38,2.48389472]
[1736950509885,0.26288995,699.58,697.39,2.48389472]
[1736950510087,0.26288995,699.57,697.4,2.48389472]
[1736950510288,0.26288995,699.56,697.41,2.48389472]
[1736950510590,0.26288995,699.55,697.42,2.48389472]
[1736950510793,0.26288995,699.55,697.33,2.72759008]
[1736950510794,0.26288995,699.55,697.43,5.2114848]
[1736950510991,0.26288995,699.55,697.44,2.48389472]
[1736950511289,0.26288995,699.55,697.45,2.48389472]
[1736950511486,0.26288995,699.54,697.46,1.62544335]
[1736950511789,0.26287718,699.54,697.47,1.62544335]
[1736950511986,0.26287718,699.53,697.48,1.62544335]
[1736950512289,0.26287718,699.52,697.49,4.35303343]
[1736950512491,0.26287718,699.51,697.5,1.62544335]
[1736950512683,0.26287718,699.71,697.6,0.28669724]
[1736950512985,0.26287718,699.7,697.6,0.28669724]
[1736950513286,0.26287718,699.69,697.6,0.28669724]
[1736950513492,0.26287718,699.68,697.6,0.28669724]
[1736950513687,0.26287718,699.67,697.6,0.28669724]
[1736950513887,0.26287718,699.66,697.6,0.28669724]
[1736950514085,0.26287718,699.71,697.6,0.28669724]
[1736950514290,0.28582861,699.72,697.6,0.28669724]
[1736950514291,0.26287718,699.7,697.6,0.28669724]
[1736950514491,0.26287718,699.69,697.6,0.28669724]
[1736950514694,0.28582861,699.72,697.6,0.28669724]
[1736950514890,0.26287732,699.71,697.6,0.28669724]
[1736950515190,0.26287732,699.7,697.6,0.28669724]
[1736950515390,0.26287732,699.69,697.6,0.28669724]
[1736950515592,0.26287732,699.68,697.6,0.28669724]
[1736950515791,0.26287732,699.67,697.6,0.28669724]
[1736950515992,0.26287732,699.66,697.6,0.28669724]
[1736950516192,0.26287732,699.71,697.6,0.28669724]
[1736950516494,0.28582861,699.72,697.6,0.28669724]
[1736950516688,0.26287178,699.71,697.6,0.28669724]
[1736950516887,0.28582861,699.72,697.6,0.28669724]
[1736950517089,0.26287604,699.7,697.6,0.28669724]
[1736950517291,0.28582861,699.72,697.6,0.28669724]
[1736950517292,0.26287604,699.71,697.6,0.28669724]
[1736950517491,0.26287604,699.7,697.6,0.28669724]
[1736950517692,0.26287604,699.71,697.6,0.28669724]
[1736950517994,0.26287604,699.7,697.6,0.28669724]
[1736950518196,0.26287604,699.69,697.6,0.28669724]
[1736950518394,0.26287604,699.71,697.6,0.28669724]
[1736950518594,0.26287604,699.7,697.6,0.28669724]
[1736950518795,0.26287604,699.69,697.6,0.28669724]
[1736950519094,0.26287604,699.68,697.6,0.28669724]
[1736950519294,0.26287604,699.67,697.6,0.28669724]
[1736950519492,0.26287604,699.66,697.6,0.28669724]
[1736950519693,0.28582861,699.72,697.6,0.28669724]
[1736950519994,0.26287747,699.71,697.6,0.28669724]
[1736950521091,0.28584087,699.69,697.6,0.28669724]
[1736950521293,0.26287747,699.68,697.6,0.28669724]
[1736950521590,0.26286013,699.68,697.6,0.28669724]
[1736950523290,0.28584087,699.69,697.6,0.28669724]
[1736950523595,0.26286366,699.68,697.6,0.28669724]
[1736950523790,0.26285311,699.68,697.6,0.28669724]
[1736950525197,1.06622868,699.6,697.6,0.28669724]
[1736950525591,0.26285782,699.59,697.6,0.28669724]
[1736950526398,1.06622868,699.54,697.6,0.28669724]
[1736950526591,0.26285782,699.53,697.6,0.28669724]
[1736950527195,1.06622868,699.49,697.6,0.28669724]
[1736950527396,0.26285782,699.48,697.6,0.28669724]
[1736950528502,1.06622868,699.35,697.6,0.28669724]
[1736950528700,0.26290352,699.34,697.6,0.28669724]
[1736950529099,1.06622868,699.35,697.6,0.28669724]
[1736950529800,1.06622868,699.25,697.6,0.28669724]
[1736950530500,0.28584087,699.69,697.6,0.28669724]
[1736950530501,1.06622868,699.3,697.6,0.28669724]
[1736950531597,1.06622868,699.31,697.6,0.28669724]
[1736950532804,1.06622868,699.3,697.75,1.04861043]
[1736950533504,1.06622868,699.3,697.77,0.28662739]
[1736950533900,0.84217365,699.68,697.77,0.28662739]
[1736950533901,1.06622868,699.29,697.77,0.28662739]
[1736950534907,1.06622868,699.23,697.77,0.28662739]
[1736950535803,1.06622868,699.27,697.77,0.28662739]
[1736950536903,1.06622868,699.22,697.77,0.28662739]
[1736950537807,1.06622868,699.16,697.77,0.28662739]
[1736950538710,1.06622868,699.23,697.81,1.04861043]
[1736950538910,1.06622868,699.23,697.83,0.28660275]
[1736950540509,1.06622868,699.28,697.83,0.28660275]
[1736950541309,1.06622868,699.31,697.83,1.33521318]
[1736950542407,1.06622868,699.37,697.9,1.04861043]
[1736950542613,1.06622868,699.37,697.92,0.28656579]
[1736950543506,1.06622868,699.4,697.92,0.28656579]
[1736950544413,1.06622868,699.37,698.02,1.04861043]
[1736950545515,1.06622868,699.34,698.0,1.04861043]
[1736950547116,1.06622868,699.32,697.92,0.28656579]
[1736950548219,0.84217365,699.68,697.92,0.28656579]
[1736950548220,1.06622868,699.35,697.94,1.04861043]
[1736950548519,0.28598392,699.34,697.94,1.04861043]
[1736950549119,0.28598392,699.34,697.93,1.04861043]
[1736950549821,0.2629536,699.33,697.93,1.04861043]
[1736950550224,0.2629536,699.33,697.92,0.28656579]
[1736950551124,0.28598392,699.34,697.92,0.28656579]
[1736950551325,1.06622868,699.25,697.92,0.28656579]
[1736950552119,1.06622868,699.3,697.92,0.28656579]
[1736950552925,0.2629572,699.29,697.92,0.28656579]
[1736950553425,0.2629572,699.28,697.92,0.28656579]
[1736950553725,0.2629572,699.27,697.92,0.28656579]
[1736950553922,0.2629572,699.33,697.92,0.28656579]
[1736950554122,0.2629572,699.32,697.92,0.28656579]
[1736950554325,0.2629572,699.31,697.92,0.28656579]
[1736950554524,1.06622868,699.29,697.92,0.28656579]
[1736950554719,0.2629572,699.28,697.92,0.28656579]
[1736950555925,0.2629572,699.27,697.92,0.28656579]
[1736950556127,1.06622868,699.3,697.92,0.28656579]
[1736950556426,0.2629704,699.29,697.92,0.28656579]
[1736950556927,0.26298124,699.28,697.92,0.28656579]
[1736950557126,0.26298124,699.27,697.92,0.28656579]
[1736950557326,0.26298124,699.32,697.92,0.28656579]
[1736950557527,0.26300791,699.31,697.92,0.28656579]
[1736950557727,1.06622868,699.29,697.92,0.28656579]
[1736950558027,0.26300791,699.28,697.92,0.28656579]
[1736950558624,1.32923659,699.28,697.92,0.28656579]
[1736950558831,0.26300791,699.27,697.92,0.28656579]
[1736950559628,0.26303669,699.26,697.38,1.04861043]
[1736950559830,0.26303669,699.27,697.39,0.28678357]
[1736950560031,0.26303669,699.26,697.39,0.28678357]
[1736950560230,0.26303669,699.25,697.39,0.28678357]
[1736950560431,0.26303669,699.24,697.39,0.28678357]
[1736950560634,0.26303669,699.23,697.39,0.28678357]
[1736950560830,0.26303669,699.22,697.39,0.28678357]
[1736950561026,0.26303669,699.27,697.39,0.28678357]
[1736950561226,0.26303669,699.26,697.39,0.28678357]
[1736950561425,0.26303669,699.25,697.39,0.28678357]
[1736950561626,0.26308275,699.24,697.39,0.28678357]
[1736950561929,0.26308275,699.28,697.39,0.28678357]
[1736950562332,1.06622868,699.22,697.39,0.28678357]
[1736950562537,0.26308275,699.21,697.39,0.28678357]
[1736950562832,0.26308275,699.2,697.39,0.28678357]
[1736950563030,0.26308275,699.19,697.4,4.43236334]
[1736950563230,0.26308275,699.18,697.4,2.77823508]
[1736950563436,0.26308275,699.17,697.4,2.77823508]
[1736950563635,0.28598392,699.34,697.4,2.77823508]
[1736950563636,1.06622868,699.08,697.4,2.77823508]
[1736950563933,0.26308275,699.07,697.4,2.77823508]
[1736950564133,0.26308275,699.07,697.39,0.28678357]
[1736950564534,0.26308275,699.06,697.39,0.28678357]
[1736950564835,0.26318225,699.05,697.39,0.28678357]
[1736950565036,0.26318225,699.04,697.39,0.28678357]
[1736950565327,1.06622868,699.2,697.39,0.28678357]
[1736950565533,0.26322673,699.19,697.39,0.28678357]
[1736950565734,0.26322673,699.18,697.39,0.28678357]
[1736950566035,1.06622868,698.95,697.39,0.28678357]
[1736950566229,0.26322673,698.94,696.74,1.04861043]
[1736950566428,0.26322673,698.93,696.76,0.28704288]
[1736950566632,0.26322673,698.92,696.76,0.28704288]
[1736950566835,0.26322673,698.91,696.76,0.28704288]
[1736950567034,0.26322673,698.9,696.76,0.28704288]
[1736950567332,0.26322673,698.89,696.76,0.28704288]
[1736950567535,0.26322673,698.88,696.76,0.28704288]
[1736950567730,0.26322673,698.87,696.76,0.28704288]
[1736950567930,0.26322673,698.86,696.76,0.28704288]
[1736950568130,0.26322673,698.85,696.76,0.28704288]
[1736950568337,1.06622868,698.94,696.76,0.28704288]
[1736950568536,1.27947442,699.5,696.76,0.28704288]
[1736950568537,0.26329809,698.84,696.76,0.28704288]
[1736950568836,0.26329809,698.83,696.76,0.28704288]
[1736950569034,1.06622868,698.99,696.76,0.28704288]
[1736950569035,0.26329809,698.82,696.76,0.28704288]
[1736950569236,0.26329809,698.81,696.76,0.28704288]
[1736950569431,0.26329809,698.98,696.76,0.28704288]
[1736950569831,0.26329809,698.8,696.76,0.28704288]
[1736950570132,0.26329809,698.79,696.76,0.28704288]
[1736950570337,0.26329809,699.02,696.76,0.28704288]
[1736950570739,0.26329809,699.01,696.76,0.28704288]
[1736950571636,0.26329809,699.0,696.76,0.28704288]
[1736950571839,1.06622868,699.37,696.76,0.28704288]
[1736950572138,0.26320028,699.33,696.76,0.28704288]
[1736950572436,1.06622868,699.28,696.76,0.28704288]
[1736950572837,0.26320028,699.27,696.76,0.28704288]
[1736950573037,0.26320028,699.26,696.76,0.28704288]
[1736950573239,1.06622868,699.6,696.76,0.28704288]
[1736950573240,1.06622868,699.21,696.76,0.28704288]
[1736950573439,0.26320028,699.2,696.76,0.28704288]
[1736950573638,1.06622868,699.21,696.76,0.28704288]
[1736950573639,0.99302709,699.19,696.76,0.28704288]
[1736950573833,0.99302709,699.18,696.76,0.28704288]